bitfinex/quotes_SOLUSD_20240826
["timestamp","ask_amount","ask_price","bid_price","bid_amount"]
[1724660943092,6.2243,160.67,160.63,6.0019]
[1724660943490,390.3,160.71,160.63,6.0019]
[1724660943695,390.3,160.71,160.64,29.52413257]
[1724660944113,390.3,160.71,160.65,15.2326]
[1724660944530,6.222,160.72,160.65,15.2326]
[1724660946325,9.52413257,160.69,160.65,15.2326]
[1724660946532,1.55576989,160.71,160.65,15.2326]
[1724660946701,11.08021032,160.7,160.65,15.2326]
[1724660947433,17.30291032,160.7,160.65,15.2326]
[1724660947793,1.55613058,160.69,160.65,15.2326]
[1724660948519,15.74683257,160.7,160.65,15.2326]
[1724660948908,6.2224,160.71,160.65,15.2326]
[1724660949116,7.77787093,160.72,160.65,24.75673257]
[1724660949308,6.222,160.72,160.66,0.9172273]
[1724660949721,6.222,160.72,160.66,10.44135987]
[1724660950803,396.5216,160.73,160.66,10.44135987]
[1724660951633,390.3,160.73,160.69,6.2172]
[1724660951842,390.3,160.73,160.69,7.13356171]
[1724660952138,390.3,160.73,160.69,6.2172]
[1724660953605,390.3,160.73,160.69,7.13359749]
[1724660954230,390.3,160.73,160.69,6.2172]
[1724660954429,7.77763295,160.72,160.69,6.2172]
[1724660954628,7.77763295,160.72,160.66,1.55734532]
[1724660954812,7.77763295,160.72,160.66,20.0]
[1724660955405,6.2226,160.71,160.65,15.2326]
[1724660955610,1.55590932,160.7,160.66,1.55757519]
[1724660955807,1.55590932,160.7,160.65,15.2326]
[1724660956111,1.55590932,160.7,160.66,1.55763336]
[1724660956429,1.55588231,160.7,160.65,15.2326]
[1724660956604,1.55588231,160.7,160.66,1.55766536]
[1724660956813,1.55588231,160.7,160.65,15.2326]
[1724660957105,1.55588231,160.7,160.66,21.55766524]
[1724660957334,1.55588231,160.7,160.66,20.0]
[1724660957521,1.55588231,160.7,160.65,15.2326]
[1724660957724,1.55588231,160.7,160.66,21.55767594]
[1724660957919,1.55588231,160.7,160.66,20.0]
[1724660958735,6.2226,160.71,160.66,20.0]
[1724660958905,6.222,160.72,160.66,20.91732273]
[1724660959104,6.222,160.72,160.67,1.55759078]
[1724660959414,6.222,160.72,160.66,20.0]
[1724660959813,6.222,160.72,160.67,1.55755711]
[1724660960016,6.222,160.72,160.66,20.0]
[1724660960213,6.222,160.72,160.67,2.80360238]
[1724660960418,6.222,160.72,160.68,1.55755674]
[1724660960607,6.222,160.72,160.66,20.0]
[1724660960824,6.222,160.72,160.67,2.80357162]
[1724660961016,6.222,160.72,160.68,1.55753979]
[1724660961215,396.522,160.72,160.66,20.0]
[1724660961416,396.522,160.72,160.67,2.80357277]
[1724660961611,1.55572451,160.71,160.68,1.55753979]
[1724660961839,1.55572451,160.71,160.66,20.0]
[1724660962135,6.2224,160.71,160.67,2.80361003]
[1724660962313,6.2224,160.71,160.68,1.55756085]
[1724660962515,6.2224,160.71,160.66,20.91732451]
[1724660962840,6.2224,160.71,160.67,2.80362013]
[1724660963036,6.2224,160.71,160.68,1.55756674]
[1724660963353,390.3,160.72,160.69,1.55756674]
[1724660963524,390.3,160.72,160.66,20.0]
[1724660963841,390.3,160.72,160.67,6.28266756]
[1724660964045,390.3,160.72,160.68,2.80358937]
[1724660964230,1.55571401,160.71,160.69,1.55754965]
[1724660964433,1.55571401,160.71,160.67,3.47884422]
[1724660964650,390.3,160.74,160.68,2.80360238]
[1724660964844,390.3,160.74,160.69,1.5575566]
[1724660965051,1.55587315,160.73,160.66,20.0]
[1724660965229,1.55587315,160.73,160.67,6.28250101]
[1724660965429,1.55587315,160.73,160.68,2.80360491]
[1724660965645,6.2224,160.71,160.69,1.55755828]
[1724660965820,6.2224,160.71,160.66,20.0]
[1724660966026,6.2224,160.71,160.67,6.28248087]
[1724660966237,6.2224,160.71,160.68,2.80360445]
[1724660966466,6.2224,160.71,160.66,20.0]
[1724660966626,6.2224,160.71,160.69,1.55757158]
[1724660966827,6.2224,160.71,160.66,20.0]
[1724660967129,6.2224,160.71,160.67,2.80365922]
[1724660967327,6.2224,160.71,160.68,1.55758887]
[1724660967555,6.2224,160.71,160.69,1.55758887]
[1724660967858,6.2224,160.71,160.66,20.0]
[1724660968046,6.2224,160.71,160.67,2.80364605]
[1724660968250,6.2224,160.71,160.68,2.80364605]
[1724660968452,6.2224,160.71,160.69,1.55758114]
[1724660968757,6.2224,160.71,160.66,20.0]
[1724660968925,6.2224,160.71,160.67,2.803658]
[1724660969127,6.2224,160.71,160.68,2.803658]
[1724660969330,6.2224,160.71,160.69,1.55758778]
[1724660969536,7.77879605,160.7,160.65,15.2326]
[1724660969758,7.77879605,160.7,160.66,2.80383113]
[1724660969933,7.77879605,160.7,160.67,1.55768396]
[1724660970132,6.2231,160.69,160.65,15.2326]
[1724660970325,1.55615558,160.68,160.66,2.80394924]
[1724660970529,1.55615558,160.68,160.64,6.2172]
[1724660970530,7.77965558,160.68,160.64,6.2172]
[1724660970743,1.55615669,160.67,160.65,1.55792811]
[1724660970943,1.55615669,160.67,160.64,6.2172]
[1724660972147,7.78025669,160.67,160.61,15.0799]
[1724660972352,7.78025669,160.67,160.62,2.80443846]
[1724660972557,6.2241,160.67,160.63,2.80443846]
[1724660972742,6.2241,160.67,160.64,1.55802137]
[1724660973058,7.78043487,160.67,160.61,15.0799]
[1724660973260,7.78043487,160.67,160.62,2.80446028]
[1724660973444,7.78043487,160.67,160.63,2.80446028]
[1724660973643,7.78043487,160.67,160.64,1.55803349]
[1724660973849,7.78043487,160.67,160.62,20.0]
[1724660974048,7.78043487,160.67,160.63,2.80445972]
[1724660974234,7.78043487,160.67,160.64,1.55803318]
[1724660974432,7.78043487,160.67,160.62,20.0]
[1724660974637,7.78043487,160.67,160.63,1.55802522]
[1724660974873,6.2243,160.66,160.64,1.55802522]
[1724660975034,1.55642256,160.65,160.61,15.0799]
[1724660975240,6.2243,160.66,160.62,1.55807396]
[1724660975551,6.2243,160.66,160.61,15.0799]
[1724660975748,6.2243,160.66,160.62,1.55816525]
[1724660975966,6.224,160.67,160.61,25.53517455]
[1724660976143,6.224,160.67,160.62,1.55817296]
[1724660976338,6.224,160.67,160.61,25.53517455]
[1724660976660,6.224,160.67,160.62,1.55817258]
[1724660976871,9.53666456,160.69,160.63,0.91822228]
[1724660977046,15.76016456,160.69,160.62,20.0]
[1724660977370,6.2235,160.69,160.63,1.55804454]
[1724660977669,6.2235,160.69,160.62,20.91801024]
[1724660977970,6.2235,160.69,160.63,1.55804585]
[1724660978275,6.2235,160.69,160.64,0.91788248]
[1724660978466,6.2228,160.7,160.64,0.91788248]
[1724660978663,6.2228,160.7,160.64,20.91788248]
[1724660978857,6.2228,160.7,160.65,0.91753434]
[1724660979453,396.5228,160.7,160.65,0.91753434]
[1724660980780,396.5228,160.7,160.64,0.91759881]
[1724660980955,396.5228,160.7,160.63,9.53666456]
[1724660981265,396.5228,160.7,160.64,21.55787036]
[1724660981472,7.77921025,160.69,160.64,20.0]
[1724660981658,7.77921025,160.69,160.61,15.0799]
[1724660981659,7.77921025,160.69,160.62,20.0]
[1724660981862,7.77921025,160.69,160.63,1.557875]
[1724660982085,7.77921025,160.69,160.62,20.0]
[1724660982268,7.77921025,160.69,160.63,1.55800274]
[1724660982476,7.77921025,160.69,160.62,20.0]
[1724660982681,17.31587481,160.69,160.63,1.55800274]
[1724660982850,17.31587481,160.69,160.64,1.55800274]
[1724660983051,17.31587481,160.69,160.62,20.0]
[1724660983250,17.31587481,160.69,160.63,1.55797092]
[1724660983582,17.31587481,160.69,160.62,20.0]
[1724660983754,17.31587481,160.69,160.63,1.5580028]
[1724660983955,17.31587481,160.69,160.62,20.0]
[1724660984286,17.31587481,160.69,160.63,1.55800243]
[1724660984486,17.31587481,160.69,160.62,20.0]
[1724660984690,17.31587481,160.69,160.63,1.55800274]
[1724660984852,17.31587481,160.69,160.62,20.0]
[1724660985171,17.31587481,160.69,160.63,1.55800274]
[1724660985369,17.31587481,160.69,160.62,20.0]
[1724660985576,407.61587481,160.69,160.63,1.55800274]
[1724660985753,407.61587481,160.69,160.62,20.0]
[1724660986085,407.61587481,160.69,160.63,1.55797063]
[1724660986257,407.61587481,160.69,160.62,20.0]
[1724660986452,407.61587481,160.69,160.63,1.55797063]
[1724660986652,407.61587481,160.69,160.62,20.0]
[1724660986880,407.61587481,160.69,160.63,1.557971]
[1724660987081,407.61587481,160.69,160.62,20.0]
[1724660987255,407.61587481,160.69,160.63,1.55800251]
[1724660987456,407.61587481,160.69,160.62,20.0]
[1724660987668,407.61587481,160.69,160.63,1.55800282]
[1724660987883,6.2237,160.68,160.62,20.0]
[1724660988182,6.2237,160.68,160.63,1.55801969]
[1724660988183,7.77997389,160.68,160.63,1.55801969]
[1724660988368,1.55626788,160.67,160.62,20.0]
[1724660988562,1.55626788,160.67,160.63,1.55801989]
[1724660988764,1.55626788,160.67,160.61,20.0]
[1724660988964,1.55626788,160.67,160.62,1.55802418]
[1724660989148,1.55626788,160.67,160.61,20.0]
[1724660989353,1.55626788,160.67,160.62,1.55808051]
[1724660989554,6.2244,160.66,160.61,20.0]
[1724660989773,1.55640668,160.65,160.61,20.0]
[1724660990089,1.55640668,160.65,160.59,20.0]
[1724660990255,1.55640668,160.65,160.6,1.55817794]
[1724660990449,1.55640668,160.65,160.61,1.55817794]
[1724660990672,1.55640668,160.65,160.59,20.0]
[1724660990887,1.55640668,160.65,160.6,1.55817925]
[1724660991085,1.55640668,160.65,160.61,1.55817925]
[1724660991280,1.55640668,160.65,160.59,20.0]
[1724660991461,1.55640668,160.65,160.6,1.55816396]
[1724660991661,1.55640668,160.65,160.61,1.55816396]
[1724660991860,1.55640668,160.65,160.59,20.0]
[1724660992079,1.55640668,160.65,160.6,1.5581639]
[1724660992265,1.55640668,160.65,160.61,1.5581639]
[1724660992478,1.55640668,160.65,160.59,20.0]
[1724660992657,1.55640668,160.65,160.6,1.55822757]
[1724660992864,1.55640668,160.65,160.59,20.0]
[1724660993071,1.55640668,160.65,160.6,1.55822757]
[1724660993386,1.55640668,160.65,160.59,20.0]
[1724660993583,1.55640668,160.65,160.6,1.55822725]
[1724660993883,1.55640668,160.65,160.59,20.0]
[1724660994065,1.55640668,160.65,160.6,1.55821961]
[1724660994261,1.55640668,160.65,160.59,20.0]
[1724660994461,1.55640668,160.65,160.6,1.55821929]
[1724660994664,1.55640668,160.65,160.59,20.0]
[1724660994901,1.55640668,160.65,160.6,1.55822762]
[1724660995187,1.55640668,160.65,160.59,20.0]
[1724660995388,1.55640668,160.65,160.6,1.55822762]
[1724660995580,1.55640668,160.65,160.59,20.0]
[1724660995887,1.55640668,160.65,160.6,1.55822762]
[1724660996089,1.55640668,160.65,160.59,20.0]
[1724660996260,1.55640668,160.65,160.6,1.55822731]
[1724660996465,1.55640668,160.65,160.59,20.0]
[1724660996790,1.55640668,160.65,160.6,1.55822762]
[1724660996965,396.5244,160.66,160.59,20.0]
[1724660997289,396.5244,160.66,160.6,1.55822725]
[1724660997487,396.5244,160.66,160.59,20.0]
[1724660997789,396.5244,160.66,160.6,1.55822694]
[1724660998096,396.5244,160.66,160.59,20.0]
[1724660998381,1.55640787,160.65,160.6,1.55822725]
[1724660998585,1.55640787,160.65,160.59,20.0]
[1724660998771,1.55640787,160.65,160.6,1.55822757]
[1724660998961,1.55640787,160.65,160.59,20.0]
[1724660999167,1.55640787,160.65,160.6,1.55822731]
[1724660999365,1.55640787,160.65,160.59,20.0]
[1724660999572,1.55640787,160.65,160.6,1.55822757]
[1724660999789,396.5244,160.66,160.59,20.0]
[1724660999965,396.5244,160.66,160.6,1.55822725]
[1724661000163,1.55640835,160.65,160.59,20.0]
[1724661000365,7.78110835,160.65,160.6,1.55822757]
[1724661000676,9.53666456,160.63,160.54,26.07756456]
[1724661000901,391.85680855,160.62,160.55,20.0]
[1724661001098,391.85680855,160.62,160.56,1.558551]
[1724661001473,391.85680855,160.62,160.55,20.0]
[1724661001977,6.2273,160.59,160.51,3.88681479]
[1724661002172,1.55712301,160.58,160.51,3.88681479]
[1724661003402,390.3,160.61,160.54,9.53666456]
[1724661003604,390.3,160.61,160.55,20.91959806]
[1724661003905,390.3,160.61,160.55,20.0]
[1724661004478,390.3,160.61,160.56,0.91953614]
[1724661005876,390.3,160.61,160.55,20.0]
[1724661006306,390.3,160.62,160.55,20.0]
[1724661008001,390.3,160.62,160.56,10.45625805]
[1724661008391,390.3,160.62,160.55,20.0]
[1724661008581,1.55682786,160.61,160.55,20.0]
[1724661011289,17.32018866,160.6,160.49,21.5606]
[1724661011497,1.5569241,160.6,160.53,9.53666456]
[1724661011692,15.6417,160.61,160.54,0.91981278]
[1724661012013,396.5259,160.62,160.54,0.91981278]
[1724661012014,390.3,160.62,160.55,9.53666456]
[1724661012302,390.3,160.64,160.55,10.456393]
[1724661012808,396.5254,160.64,160.56,12.84326421]
[1724661012986,6.2255,160.63,160.56,12.84326421]
[1724661013189,6.2255,160.63,160.56,11.9240354]
[1724661013494,7.78225356,160.63,160.54,11.9240354]
[1724661013688,7.78225356,160.63,160.55,20.0]
[1724661016708,1.55675356,160.63,160.55,20.0]
[1724661016894,11.9240354,160.62,160.52,11.9240354]
[1724661017097,1.55692185,160.61,160.53,20.0]
[1724661017905,7.78322185,160.61,160.53,20.0]
[1724661018210,398.08322185,160.61,160.53,20.0]
[1724661018618,396.5263,160.61,160.53,20.0]
[1724661020894,390.3,160.61,160.56,11.9240354]
[1724661023006,1.55665651,160.6,160.53,31.9240354]
[1724661025796,7.78325604,160.61,160.53,31.9240354]
[1724661025991,1.55695604,160.6,160.53,31.9240354]
[1724661031000,390.3,160.61,160.53,31.9240354]
[1724661034528,396.5263,160.61,160.54,3.48894471]
[1724661034727,1.55692358,160.6,160.54,3.48894471]
[1724661034904,1.55692358,160.6,160.52,26.03017962]
[1724661035233,15.9106,160.59,160.49,33.4846354]
[1724661035397,1.55734051,160.58,160.5,3.49138201]
[1724661035592,1.55730418,160.57,160.49,33.4846354]
[1724661035797,1.55730418,160.57,160.5,3.49147497]
[1724661036013,1.55730418,160.57,160.5,3.49147952]
[1724661036217,1.55730418,160.57,160.5,3.49110101]
[1724661036493,7.78510418,160.57,160.49,33.4846354]
[1724661036717,7.78510418,160.57,160.5,23.49088592]
[1724661036896,7.78510418,160.57,160.5,20.0]
[1724661037100,1.55730418,160.57,160.5,20.0]
[1724661039931,1.55730418,160.57,160.51,3.48941748]
[1724661041505,396.5275,160.58,160.51,15.41345288]
[1724661041707,396.5275,160.58,160.52,20.0]
[1724661042119,1.55717547,160.57,160.52,20.0]
[1724661042632,406.2106,160.59,160.53,11.9240354]
[1724661042805,1.5569929,160.58,160.53,11.9240354]
[1724661044228,1.5569929,160.58,160.54,3.48699065]
[1724661044531,1.5569929,160.58,160.53,11.9240354]
[1724661044840,1.55700188,160.58,160.52,20.0]
[1724661044999,1.55700188,160.58,160.53,3.48724691]
[1724661045319,1.55700188,160.58,160.52,20.0]
[1724661045523,1.55700188,160.58,160.53,3.48811616]
[1724661045708,1.55700188,160.58,160.52,20.0]
[1724661045905,1.55700188,160.58,160.53,3.48811627]
[1724661046100,1.55700188,160.58,160.52,20.0]
[1724661046304,1.55700188,160.58,160.53,3.4880591]
[1724661046525,1.55700188,160.58,160.52,20.0]
[1724661046738,1.55700188,160.58,160.53,3.48802614]
[1724661046912,1.55700188,160.58,160.52,20.0]
[1724661047232,1.55700188,160.58,160.53,3.48802529]
[1724661047535,1.55700188,160.58,160.52,20.0]
[1724661047722,1.55700188,160.58,160.53,3.4880591]
[1724661047923,1.55700188,160.58,160.52,20.0]
[1724661048135,1.55711807,160.57,160.53,3.48814071]
[1724661048431,1.55711807,160.57,160.49,6.1425166]
[1724661048432,1.55711807,160.57,160.51,20.0]
[1724661048739,1.55711807,160.57,160.52,3.48862525]
[1724661048909,1.55711807,160.57,160.5,20.0]
[1724661049101,1.55711807,160.57,160.51,3.48863859]
[1724661049430,1.55711807,160.57,160.5,20.0]
[1724661049814,1.55711807,160.57,160.51,3.48883687]
[1724661050024,1.55711807,160.57,160.49,31.9240354]
[1724661050212,1.55711807,160.57,160.5,3.4888386]
[1724661050531,1.55711807,160.57,160.51,3.4888386]
[1724661050733,1.55711807,160.57,160.47,6.14390552]
[1724661050734,6.2291,160.54,160.47,14.01684585]
[1724661050936,13.48168936,160.54,160.48,3.4906435]
[1724661051103,6.2293,160.53,160.49,3.4906435]
[1724661051308,1.55765371,160.52,160.45,18.06794092]
[1724661051508,1.55765371,160.52,160.46,3.49055323]
[1724661051709,1.55765371,160.52,160.47,3.49055323]
[1724661051929,19.71068958,160.54,160.48,3.49055323]
[1724661052118,1.55765418,160.54,160.47,11.9240354]
[1724661052324,396.9612,160.55,160.49,11.9240354]
[1724661052935,390.3,160.55,160.49,11.9240354]
[1724661053917,396.5282,160.56,160.49,11.9240354]
[1724661054236,1.55746878,160.55,160.49,11.9240354]
[1724661054440,1.55746878,160.55,160.46,20.0]
[1724661054734,1.55746878,160.55,160.48,11.9240354]
[1724661054941,1.55746878,160.55,160.49,20.0]
[1724661055446,1.55746955,160.54,160.49,20.0]
[1724661055741,7.7863063,160.55,160.49,20.0]
[1724661055929,1.5575063,160.53,160.49,20.0]
[1724661056125,1.5575063,160.53,160.47,20.0]
[1724661056331,1.5575063,160.53,160.48,3.4896171]
[1724661056526,1.5575063,160.53,160.47,20.0]
[1724661056850,7.78662471,160.54,160.48,3.48961612]
[1724661058617,1.55762471,160.54,160.48,3.48961612]
[1724661059443,1.55762471,160.54,160.47,20.0]
[1724661059747,7.78662471,160.54,160.47,20.0]
[1724661059948,398.08662471,160.54,160.47,20.0]
[1724661060141,398.08662471,160.54,160.48,3.48970375]
[1724661060817,398.08662471,160.54,160.47,20.0]
[1724661061529,398.08662471,160.54,160.48,1.55928412]
[1724661061730,398.08662471,160.54,160.49,1.5592838]
[1724661062032,398.08662471,160.54,160.5,1.5592838]
[1724661062235,398.08662471,160.54,160.47,20.0]
[1724661065841,390.3,160.53,160.47,20.0]
[1724661066053,1.55773328,160.52,160.47,20.0]
[1724661067659,390.3,160.53,160.47,20.0]
[1724661067825,390.3,160.53,160.47,20.92159346]
[1724661069054,390.3,160.53,160.47,20.0]
[1724661070836,390.3,160.53,160.5,11.9240354]
[1724661071048,390.3,160.53,160.52,11.9240354]
[1724661071231,390.3,160.53,160.52,31.9240354]
[1724661071845,390.3,160.58,160.52,31.9240354]
[1724661072562,390.3,160.58,160.54,11.9240354]
[1724661072742,390.3,160.57,160.54,11.9240354]
[1724661072939,390.3,160.57,160.52,20.0]
[1724661073123,390.3,160.57,160.52,11.9240354]
[1724661073451,390.3,160.57,160.53,20.0]
[1724661077343,390.3,160.57,160.54,11.9240354]
[1724661077542,16.4496,160.64,160.56,11.9240354]
[1724661077858,16.4496,160.64,160.58,11.9240354]
[1724661078058,6.0002,160.67,160.6,11.9240354]
[1724661078239,12.2241,160.67,160.6,11.9240354]
[1724661079067,1.55653369,160.68,160.6,11.9240354]
[1724661079241,22.6731,160.69,160.6,11.9240354]
[1724661079838,22.6731,160.69,160.57,20.0]
[1724661079839,11.9240354,160.68,160.58,0.91826481]
[1724661080065,18.1483354,160.66,160.54,20.0]
[1724661080241,1.55664174,160.65,160.56,11.9240354]
[1724661080442,1.55664047,160.64,160.57,20.0]
[1724661082575,1.55664047,160.64,160.57,11.9240354]
[1724661082742,1.55664047,160.64,160.58,20.0]
[1724661083065,1.55663592,160.65,160.59,11.9240354]
[1724661083265,16.4496,160.69,160.61,11.9240354]
[1724661083266,22.6727,160.69,160.61,11.9240354]
[1724661083453,7.77999628,160.68,160.61,11.9240354]
[1724661083653,1.5564447,160.67,160.6,20.0]
[1724661085244,6.2236,160.68,160.6,20.0]
[1724661085440,6.2236,160.68,160.6,20.91849891]
[1724661085645,1.55629725,160.67,160.61,11.91999246]
[1724661087200,16.4496,160.69,160.61,11.91999246]
[1724661087341,6.1666,160.71,160.62,20.91787212]
[1724661087543,6.1666,160.71,160.63,11.91999246]
[1724661088166,11.91999246,160.72,160.63,11.91999246]
[1724661088365,15.4148,160.73,160.65,11.91999246]
[1724661088539,15.4148,160.73,160.66,20.91727926]
[1724661088746,1.55586861,160.72,160.66,20.0]
[1724661090379,21.6365,160.73,160.66,20.91727926]
[1724661090852,23.19230937,160.73,160.66,20.0]
[1724661091073,21.6365,160.73,160.66,20.0]
[1724661091378,6.222,160.72,160.66,20.0]
[1724661092189,1.55580896,160.71,160.61,11.91999246]
[1724661092400,13.47611011,160.7,160.62,20.0]
[1724661093167,15.4148,160.73,160.63,12.83787059]
[1724661093368,15.4148,160.73,160.65,11.91999246]
[1724661093581,6.222,160.72,160.65,11.91999246]
[1724661095199,1.55579972,160.73,160.67,11.91999246]
[1724661095381,11.91999246,160.77,160.67,11.91999246]
[1724661095573,1.55569315,160.76,160.67,11.91999246]
[1724661095776,6.2212,160.74,160.67,11.91999246]
[1724661095986,7.77729336,160.73,160.65,11.91999246]
[1724661096194,7.77729336,160.73,160.66,20.0]
[1724661096696,6.222,160.72,160.66,20.0]
[1724661098892,6.222,160.72,160.65,20.0]
[1724661099800,1.55590907,160.71,160.65,20.0]
[1724661101293,60.5509,160.77,160.66,11.91159551]
[1724661101478,6.2213,160.74,160.67,20.0]
[1724661102000,6.2217,160.73,160.66,12.82899696]
[1724661102183,6.2217,160.73,160.67,20.0]
[1724661102388,6.1955,160.79,160.68,11.91159551]
[1724661102685,390.3,160.85,160.66,21.2076]
[1724661102686,390.3,160.85,160.7,11.91159551]
[1724661102887,11.91159551,160.8,160.71,20.91590867]
[1724661103190,11.91159551,160.8,160.71,20.0]
[1724661103392,1.55528258,160.79,160.71,20.0]
[1724661104474,6.2198,160.78,160.71,20.0]
[1724661105492,7.77538494,160.77,160.71,20.0]
[1724661105699,1.55538019,160.76,160.71,20.0]
[1724661105896,1.55538019,160.76,160.69,20.0]
[1724661106331,31.8792,160.82,160.69,20.0]
[1724661106332,22.5512,160.82,160.72,11.91159551]
[1724661106487,16.3331,160.82,160.73,20.91517135]
[1724661106685,16.3331,160.82,160.73,20.0]
[1724661107292,6.2188,160.81,160.74,0.91523466]
[1724661108419,1.55497263,160.8,160.73,20.0]
[1724661108591,11.91159551,160.81,160.73,20.0]
[1724661108592,7.77445195,160.79,160.73,20.0]
[1724661108791,7.77445195,160.79,160.71,20.0]
[1724661110027,6.2196,160.78,160.71,20.0]
[1724661110402,6.2193,160.79,160.72,11.91159551]
[1724661110717,6.2193,160.79,160.73,20.0]
[1724661111107,6.2189,160.8,160.72,11.91159551]
[1724661111311,6.2189,160.8,160.73,20.0]
[1724661112628,6.2197,160.78,160.73,20.0]
[1724661112821,1.55523071,160.77,160.71,20.0]
[1724661113214,7.77586489,160.76,160.71,20.0]
[1724661113537,7.77586489,160.76,160.7,22.351]
[1724661113538,6.2213,160.74,160.7,22.351]
[1724661113739,6.2213,160.74,160.67,11.90507031]
[1724661114117,1.55561021,160.73,160.67,11.90507031]
[1724661114443,396.5213,160.74,160.68,0.91675955]
[1724661114628,396.5213,160.74,160.66,22.1949]
[1724661115345,6.2219,160.73,160.67,0.9167592]
[1724661116139,396.5213,160.74,160.67,0.9167592]
[1724661116344,396.5213,160.74,160.67,20.9167592]
[1724661117526,396.5213,160.74,160.67,20.0]
[1724661119333,6.2213,160.74,160.67,20.0]
[1724661119932,6.2213,160.74,160.68,0.91675879]
[1724661120255,6.222,160.72,160.67,20.0]
[1724661121227,7.77740986,160.73,160.67,20.0]
[1724661121954,6.222,160.72,160.67,20.0]
[1724661122830,1.55581456,160.71,160.67,20.0]
[1724661123626,7.77784682,160.72,160.67,20.0]
[1724661123836,1.55584682,160.72,160.62,22.3789]
[1724661124040,6.2224,160.71,160.63,1.55766454]
[1724661124365,6.2224,160.71,160.63,2.47523072]
[1724661124531,6.222,160.72,160.63,2.47523072]
[1724661124734,6.222,160.72,160.63,22.47523072]
[1724661125056,6.222,160.72,160.63,20.91756618]
[1724661125631,6.222,160.72,160.63,50.69390904]
[1724661126743,6.222,160.72,160.63,49.77634286]
[1724661129248,6.222,160.72,160.64,1.55766293]
[1724661129837,7.77740878,160.73,160.64,1.55766293]
[1724661130356,1.55580878,160.73,160.64,1.55766293]
[1724661130527,6.2224,160.71,160.64,1.55766293]
[1724661130736,6.2224,160.71,160.64,1.55767072]
[1724661131449,6.222,160.72,160.64,1.55767072]
[1724661131748,6.2216,160.73,160.64,46.55767072]
[1724661131952,6.2213,160.74,160.65,0.91687491]
[1724661132147,6.2213,160.74,160.65,20.91687491]
[1724661133962,6.2216,160.73,160.65,20.91687491]
[1724661135075,396.5211,160.75,160.66,0.91691064]
[1724661135358,396.5211,160.75,160.66,45.91691064]
[1724661135561,396.5211,160.75,160.67,20.0]
[1724661135852,396.5211,160.75,160.68,0.91659353]
[1724661139153,6.2212,160.74,160.68,0.91659353]
[1724661139660,396.5209,160.75,160.68,16.88979353]
[1724661139879,396.5209,160.75,160.68,15.9732]
[1724661140168,6.2209,160.75,160.68,15.9732]
[1724661140362,6.2209,160.75,160.69,0.91645229]
[1724661140863,390.3,160.76,160.69,0.91645229]
[1724661141070,396.5205,160.76,160.69,20.91645229]
[1724661141364,390.3,160.76,160.7,11.90860498]
[1724661141565,390.3,160.76,160.71,0.91604129]
[1724661142051,402.20860498,160.8,160.7,11.90860498]
[1724661142242,6.2199,160.78,160.71,0.91570996]
[1724661142571,396.5196,160.79,160.72,6.4096]
[1724661143170,1.55509467,160.78,160.72,6.4096]
[1724661143544,396.5196,160.79,160.72,6.4096]
[1724661143851,390.3,160.79,160.72,6.4096]
[1724661145044,396.5193,160.79,160.72,6.4096]
[1724661145276,396.5193,160.79,160.73,31.90860498]
[1724661145277,390.3,160.79,160.73,31.90860498]
[1724661145580,390.3,160.79,160.74,15.4877]
[1724661146149,11.90860498,160.83,160.74,15.4877]
[1724661146150,390.3,160.82,160.74,15.4877]
[1724661146349,7.77376845,160.81,160.74,15.4877]
[1724661146559,6.2193,160.79,160.74,15.4877]
[1724661146762,6.2189,160.8,160.74,15.4877]
[1724661148664,6.2189,160.8,160.75,0.91511408]
[1724661148967,396.5183,160.82,160.75,0.91511479]
[1724661149343,396.5183,160.82,160.75,12.82371977]
[1724661152072,6.2185,160.81,160.75,12.82371977]
[1724661153265,6.2185,160.81,160.75,11.90860498]
[1724661153772,6.2185,160.81,160.74,15.4877]
[1724661153977,7.77384297,160.8,160.74,15.4877]
[1724661154155,1.55497156,160.79,160.74,15.4877]
[1724661154557,7.77397167,160.8,160.74,15.4877]